fUSD/lending_fUSD_20241011
["ID","MTS","AMOUNT","RATE_DAILY","PERIOD"]
[340141410,1728676240194,-432.31164817,0.00011,2]
[340141411,1728676240205,-609.16,0.00011,2]
[340141412,1728676240310,-4795724.99063487,0.00011,2]
[340141413,1728676240369,-93949.24311446,0.00011,2]
[340141414,1728676240380,-588.950825,0.00011,2]
[340141415,1728676240392,-2270.13384729,0.00011,2]
[340141416,1728676240435,-4130.24694756,0.00011,2]
[340141417,1728676240446,-611.08,0.00011,2]
[340141418,1728676240458,-91132.92550034,0.00011,2]
[340141419,1728676240470,-2080.25724065,0.00011,2]
[340141420,1728676240482,-270.59,0.00011,2]
[340141421,1728676240495,-1618.86926637,0.00011,2]
[340141422,1728676240506,-266.27,0.00011,2]
[340141423,1728676240521,-493.22534308,0.00011,2]
[340141424,1728676240532,-1060.86500547,0.00011,2]
[340141425,1728676240544,-560.58454009,0.00011,2]
[340141426,1728676240555,-300.0,0.00011,2]
[340141500,1728676243152,-413.90467269,0.00010973,2]
[340141501,1728676243164,-86.09532731,0.00010973,2]
[340141502,1728676243173,-345.25438869,0.00011,2]
[340141503,1728676243184,-4713.54452395,0.00011,2]
[340141504,1728676243195,-17576.38955663,0.00011,2]
[340141505,1728676243325,-788.78006164,0.00011,2]
[340141506,1728676243382,-1220.0,0.00011,2]
[340141507,1728676243394,-1420746.73674676,0.00011,2]
[340141508,1728676243404,-1457860.80164752,0.00011,2]
[340141509,1728676243414,-4079.03,0.00011328,2]
[340141510,1728676243424,-200.0,0.00011445,2]
[340141511,1728676243434,-23900.0,0.0001145,2]
[340141512,1728676243443,-250.0,0.00011484,2]
[340141513,1728676243453,-150.0,0.00011585,2]
[340141514,1728676243462,-250.0,0.00011612,2]
[340141515,1728676243472,-2751.0,0.00011643,2]
[340141516,1728676243481,-500.0,0.000117,2]
[340141517,1728676243491,-250.0,0.00011715,2]
[340141519,1728676243500,-157.39169064,0.000119,2]
[340141520,1728676243510,-150.0,0.00011945,2]
[340141522,1728676243521,-600.0,0.00012,2]
[340141524,1728676243531,-183.04,0.00012022,2]
[340141526,1728676243540,-170.27,0.00012142,2]
[340141528,1728676243549,-214.76,0.00012317,2]
[340141529,1728676243559,-500.0,0.00012342,2]
[340141530,1728676243568,-789.69222678,0.00012342,2]
[340141531,1728676243578,-200.0,0.00012382,2]
[340141532,1728676243589,-151.89269291,0.00013773,2]
[340141533,1728676243598,-404519.658668,0.000138,3]
[340141534,1728676243608,-427637.019714,0.000139,3]
[340141535,1728676243617,-200.0,0.00013929,2]
[340141536,1728676243628,-650.0,0.00014,2]
[340141537,1728676243641,-170.27,0.00014165,2]
[340141538,1728676243650,-200.0,0.0001424,2]
[340141539,1728676243659,-4902.96210792,0.00014567,2]
[340141540,1728676243669,-214.76,0.00014581,2]
[340141541,1728676243678,-7720.0,0.00015,2]
[340141542,1728676243688,-226.57,0.00015068,2]
[340141543,1728676243697,-186.7,0.00015347,2]
[340141545,1728676243706,-200.0,0.00015477,2]
[340141546,1728676243716,-700.0,0.00016,2]
[340141547,1728676243726,-186.7,0.00016114,2]
[340141549,1728676243738,-1188.37,0.00016116,2]
[340141551,1728676243748,-170.27,0.00016189,2]
[340141552,1728676243758,-171.95,0.00016438,2]
[340141554,1728676243768,-214.76,0.00016845,2]
[340141556,1728676243779,-186.7,0.00016882,2]
[340141557,1728676243789,-200.0,0.00017025,2]
[340141558,1728676243799,-800.0,0.00017323,2]
[340141559,1728676243810,-164.85546903,0.00017637,2]
[340141560,1728676243820,-186.7,0.00017649,2]
[340141561,1728676243831,-750.0,0.00018,2]
[340141562,1728676243840,-170.27,0.00018213,2]
[340141563,1728676243850,-4902.96210792,0.00018233,2]
[340141564,1728676243860,-186.7,0.00018416,2]
[340141565,1728676243869,-200.0,0.00018572,2]
[340141566,1728676243878,-214.76,0.00019109,2]
[340141567,1728676243888,-800.0,0.00019488,2]
[340141568,1728676243898,-143781.72753081,0.0001988,2]
[340141569,1728676243907,-63949.88640324,0.0002,4]
[340141570,1728676243916,-800.0,0.0002,2]
[340141571,1728676243926,-214.76,0.00021373,2]
[340141572,1728676243935,-800.0,0.00021653,2]
[340141573,1728676243945,-4902.96210792,0.000219,2]
[340141574,1728676243954,-521.89,0.00021918,2]
[340141575,1728676243964,-850.0,0.00022,2]
[340141576,1728676243974,-1188.68208157,0.00022029,2]
[340141577,1728676243983,-1769.018,0.00022396,2]
[340141578,1728676243993,-555.0,0.00022396,2]
[340141579,1728676244003,-1907.0,0.00022396,2]
[340141580,1728676244013,-808.0,0.00022396,2]
[340141581,1728676244023,-1910.0,0.00022396,2]
[340141582,1728676244033,-1149.0,0.00022396,2]
[340141583,1728676244043,-248.261,0.00022396,2]
[340141584,1728676244052,-5879.0,0.00022396,2]
[340141585,1728676244062,-13519.0,0.00022396,2]
[340141586,1728676244071,-1083.0,0.00022396,2]
[340141587,1728676244081,-157.74,0.00022416,2]
[340141588,1728676244090,-6870.36449338,0.00023339,2]
[340141589,1728676244122,-214.76,0.00023637,2]
[340141590,1728676244131,-800.0,0.00023819,2]
[340141591,1728676244141,-900.0,0.00024,2]
[340141592,1728676244150,-164.85546903,0.00024373,2]
[340141593,1728676244159,-279.48,0.00024456,2]
[340141594,1728676244168,-375.0,0.00024657,2]
[340141595,1728676244178,-171.95,0.00024658,2]
[340141596,1728676244187,-4902.96210792,0.00025567,2]
[340141597,1728676244196,-214.76,0.00025901,2]
[340141598,1728676244206,-800.0,0.00025984,2]
[340141599,1728676244215,-950.0,0.00026,2]
[340141600,1728676244225,-151.71,0.00026627,2]
[340141601,1728676244235,-151.71,0.00026644,2]
[340141602,1728676244245,-151.71,0.0002666,2]
[340141603,1728676244254,-151.71,0.00026677,2]
[340141604,1728676244265,-151.71,0.00026694,2]
[340141605,1728676244275,-151.71,0.0002671,2]
[340141606,1728676244284,-151.71,0.00026727,2]
[340141607,1728676244293,-151.71,0.00026744,2]
[340141608,1728676244302,-151.71,0.0002676,2]
[340141609,1728676244312,-186.02411079,0.000269,2]
[340141610,1728676244321,-12806.97669932,0.000269,2]
[340141611,1728676244330,-1307.81262356,0.000269,2]
[340141612,1728676244340,-500.0,0.00027397,2]
[340141613,1728676244349,-500.0,0.00027397,2]
[340141614,1728676244359,-500.0,0.00027397,2]
[340141615,1728676244369,-500.0,0.00027397,2]
[340141616,1728676244378,-500.0,0.00027397,2]
[340141617,1728676244387,-500.0,0.00027397,2]
[340141618,1728676244396,-500.0,0.00027397,2]
[340141619,1728676244405,-500.0,0.00027397,2]
[340141620,1728676244415,-500.0,0.00027397,2]
[340141621,1728676244424,-500.0,0.00027397,2]
[340141622,1728676244434,-500.0,0.00027397,2]
[340141623,1728676244443,-157.4951398,0.00027397,2]
[340141624,1728676244453,-500.0,0.00027397,2]
[340141625,1728676244462,-500.0,0.00027397,2]
[340141626,1728676244472,-500.0,0.00027397,2]
[340141627,1728676244481,-500.0,0.00027397,2]
[340141628,1728676244491,-500.0,0.00027397,2]
[340141629,1728676244501,-500.0,0.00027397,2]
[340141630,1728676244511,-500.0,0.00027397,2]
[340141631,1728676244520,-500.0,0.00027397,2]
[340141632,1728676244530,-500.0,0.00027397,2]
[340141633,1728676244540,-500.0,0.00027397,2]
[340141634,1728676244549,-500.0,0.00027397,2]
[340141635,1728676244559,-500.0,0.00027397,2]
[340141636,1728676244569,-500.0,0.00027397,2]
[340141637,1728676244578,-500.0,0.00027397,2]
[340141638,1728676244588,-500.0,0.00027397,2]
[340141639,1728676244598,-500.0,0.00027397,2]
[340141640,1728676244607,-500.0,0.00027397,2]
[340141641,1728676244617,-500.0,0.00027397,2]
[340141642,1728676244626,-500.0,0.00027397,30]
[340141643,1728676244636,-500.0,0.00027397,2]
[340141644,1728676244645,-500.0,0.00027397,2]
[340141645,1728676244655,-500.0,0.00027397,2]
[340141646,1728676244665,-500.0,0.00027397,2]
[340141647,1728676244674,-500.0,0.00027397,2]
[340141648,1728676244684,-500.0,0.00027397,2]
[340141649,1728676244693,-500.0,0.00027397,2]
[340141650,1728676244702,-500.0,0.00027397,2]
[340141651,1728676244712,-500.0,0.00027397,2]
[340141652,1728676244721,-500.0,0.00027397,2]
[340141653,1728676244731,-500.0,0.00027397,2]
[340141654,1728676244743,-500.0,0.00027397,2]
[340141655,1728676244753,-500.0,0.00027397,2]
[340141656,1728676244763,-500.0,0.00027397,2]
[340141657,1728676244772,-500.0,0.00027397,2]
[340141658,1728676244783,-500.0,0.00027397,2]
[340141659,1728676244792,-500.0,0.00027397,2]
[340141660,1728676244802,-500.0,0.00027397,2]
[340141661,1728676244812,-536.00500654,0.00027397,2]
[340141662,1728676244822,-500.0,0.00027397,2]
[340141663,1728676244832,-500.0,0.00027397,2]
[340141664,1728676244841,-500.0,0.00027397,2]
[340141665,1728676244850,-500.0,0.00027397,2]
[340141666,1728676244859,-500.0,0.00027397,2]
[340141667,1728676244868,-500.0,0.00027397,2]
[340141668,1728676244878,-500.0,0.00027397,2]
[340141669,1728676244886,-500.0,0.00027397,2]
[340141670,1728676244895,-500.0,0.00027397,2]
[340141671,1728676244906,-500.0,0.00027397,2]
[340141672,1728676244915,-500.0,0.00027397,2]
[340141673,1728676244924,-500.0,0.00027397,2]
[340141674,1728676244933,-500.0,0.00027397,2]
[340141675,1728676244942,-500.0,0.00027397,2]
[340141676,1728676244951,-500.0,0.00027397,2]
[340141677,1728676244960,-500.0,0.00027397,2]
[340141678,1728676244969,-500.0,0.00027397,2]
[340141679,1728676244978,-500.0,0.00027397,2]
[340141680,1728676244988,-500.0,0.00027397,2]
[340141681,1728676244996,-500.0,0.00027397,2]
[340141682,1728676245006,-500.0,0.00027397,2]
[340141683,1728676245015,-500.0,0.00027397,2]
[340141684,1728676245024,-500.0,0.00027397,2]
[340141685,1728676245033,-500.0,0.00027397,2]
[340141686,1728676245042,-500.0,0.00027397,2]
[340141687,1728676245052,-500.0,0.00027397,2]
[340141688,1728676245061,-500.0,0.00027397,2]
[340141689,1728676245070,-500.0,0.00027397,2]
[340141690,1728676245079,-500.0,0.00027397,2]
[340141691,1728676245089,-500.0,0.00027397,2]
[340141692,1728676245098,-500.0,0.00027397,2]
[340141693,1728676245107,-500.0,0.00027397,2]
[340141694,1728676245116,-500.0,0.00027397,2]
[340141695,1728676245125,-500.0,0.00027397,2]
[340141696,1728676245135,-500.0,0.00027397,2]
[340141697,1728676245144,-500.0,0.00027397,2]
[340141698,1728676245153,-500.0,0.00027397,2]
[340141699,1728676245162,-500.0,0.00027397,2]
[340141700,1728676245171,-500.0,0.00027397,2]
[340141701,1728676245180,-500.0,0.00027397,2]
[340141702,1728676245189,-500.0,0.00027397,2]
[340141703,1728676245198,-500.0,0.00027397,2]
[340141704,1728676245207,-500.0,0.00027397,2]
[340141705,1728676245216,-500.0,0.00027397,2]
[340141706,1728676245225,-500.0,0.00027397,2]
[340141707,1728676245233,-500.0,0.00027397,2]
[340141708,1728676245242,-500.0,0.00027397,2]
[340141709,1728676245251,-500.0,0.00027397,2]
[340141710,1728676245261,-500.0,0.00027397,2]
[340141711,1728676245270,-500.0,0.00027397,2]
[340141712,1728676245279,-500.0,0.00027397,2]
[340141713,1728676245288,-500.0,0.00027397,2]
[340141714,1728676245296,-500.0,0.00027397,2]
[340141715,1728676245305,-500.0,0.00027397,2]
[340141716,1728676245314,-500.0,0.00027397,2]
[340141717,1728676245323,-750.0,0.00027397,2]
[340141718,1728676245332,-500.0,0.00027397,2]
[340141719,1728676245341,-500.0,0.00027397,2]
[340141720,1728676245350,-500.0,0.00027397,2]
[340141721,1728676245359,-500.0,0.00027397,2]
[340141722,1728676245369,-500.0,0.00027397,2]
[340141723,1728676245379,-500.0,0.00027397,2]
[340141724,1728676245389,-500.0,0.00027397,2]
[340141725,1728676245398,-500.0,0.00027397,2]
[340141726,1728676245408,-500.0,0.00027397,2]
[340141727,1728676245416,-500.0,0.00027397,2]
[340141728,1728676245425,-500.0,0.00027397,2]
[340141729,1728676245435,-500.0,0.00027397,2]
[340141730,1728676245444,-500.0,0.00027397,2]
[340141731,1728676245453,-500.0,0.00027397,2]
[340141732,1728676245461,-500.0,0.00027397,2]
[340141733,1728676245470,-500.0,0.00027397,2]
[340141734,1728676245481,-500.0,0.00027397,2]
[340141735,1728676245490,-500.0,0.00027397,2]
[340141736,1728676245498,-500.0,0.00027397,2]
[340141737,1728676245508,-500.0,0.00027397,2]
[340141738,1728676245517,-500.0,0.00027397,2]
[340141739,1728676245526,-500.0,0.00027397,2]
[340141740,1728676245535,-500.0,0.00027397,2]
[340141741,1728676245544,-500.0,0.00027397,2]
[340141742,1728676245553,-500.0,0.00027397,2]
[340141743,1728676245562,-500.0,0.00027397,2]
[340141744,1728676245571,-500.0,0.00027397,2]
[340141745,1728676245580,-500.0,0.00027397,2]
[340141746,1728676245590,-500.0,0.00027397,2]
[340141747,1728676245600,-500.0,0.00027397,2]
[340141748,1728676245611,-500.0,0.00027397,2]
[340141749,1728676245621,-289.43165395,0.00027397,2]
[340141750,1728676245630,-500.0,0.00027397,2]
[340141751,1728676245639,-500.0,0.00027397,2]
[340141752,1728676245649,-500.0,0.00027397,2]
[340141753,1728676245661,-500.0,0.00027397,2]
[340141754,1728676245670,-500.0,0.00027397,2]
[340141755,1728676245679,-500.0,0.00027397,2]
[340141756,1728676245689,-500.0,0.00027397,2]
[340141757,1728676245698,-500.0,0.00027397,2]
[340141758,1728676245707,-500.0,0.00027397,2]
[340141759,1728676245716,-500.0,0.00027397,2]
[340141760,1728676245726,-500.0,0.00027397,2]
[340141761,1728676245735,-500.0,0.00027397,2]
[340141762,1728676245748,-500.0,0.00027397,2]
[340141763,1728676245758,-500.0,0.00027397,2]
[340141764,1728676245769,-500.0,0.00027397,2]
[340141765,1728676245779,-500.0,0.00027397,2]
[340141766,1728676245788,-500.0,0.00027397,2]
[340141767,1728676245798,-500.0,0.00027397,2]
[340141768,1728676245808,-500.0,0.00027397,2]
[340141769,1728676245818,-500.0,0.00027397,2]
[340141770,1728676245827,-500.0,0.00027397,2]
[340141771,1728676245836,-500.0,0.00027397,2]
[340141772,1728676245846,-500.0,0.00027397,2]
[340141773,1728676245857,-500.0,0.00027397,2]
[340141774,1728676245868,-500.0,0.00027397,2]
[340141776,1728676245878,-500.0,0.00027397,2]
[340141777,1728676245887,-500.0,0.00027397,2]
[340141778,1728676245897,-500.0,0.00027397,2]
[340141779,1728676245907,-500.0,0.00027397,2]
[340141780,1728676245917,-500.0,0.00027397,2]
[340141781,1728676245928,-500.0,0.00027397,2]
[340141782,1728676245939,-500.0,0.00027397,2]
[340141783,1728676245949,-500.0,0.00027397,2]
[340141784,1728676245960,-500.0,0.00027397,2]
[340141785,1728676245970,-500.0,0.00027397,2]
[340141786,1728676245980,-500.0,0.00027397,2]
[340141787,1728676245989,-500.0,0.00027397,2]
[340141789,1728676245998,-500.0,0.00027397,2]
[340141791,1728676246007,-500.0,0.00027397,2]
[340141794,1728676246025,-500.0,0.00027397,2]
[340141796,1728676246034,-500.0,0.00027397,2]
[340141798,1728676246044,-500.0,0.00027397,2]
[340141799,1728676246054,-500.0,0.00027397,2]
[340141800,1728676246063,-500.0,0.00027397,2]
[340141801,1728676246072,-500.0,0.00027397,2]
[340141803,1728676246081,-500.0,0.00027397,2]
[340141804,1728676246090,-500.0,0.00027397,2]
[340141805,1728676246099,-500.0,0.00027397,2]
[340141806,1728676246108,-500.0,0.00027397,2]
[340141807,1728676246117,-500.0,0.00027397,2]
[340141808,1728676246127,-500.0,0.00027397,2]
[340141809,1728676246137,-500.0,0.00027397,2]
[340141810,1728676246146,-500.0,0.00027397,2]
[340141811,1728676246155,-500.0,0.00027397,2]
[340141812,1728676246325,-500.0,0.00027397,2]
[340141813,1728676246335,-500.0,0.00027397,2]
[340141814,1728676246345,-500.0,0.00027397,2]
[340141815,1728676246355,-500.0,0.00027397,2]
[340141816,1728676246366,-500.0,0.00027397,2]
[340141817,1728676246376,-500.0,0.00027397,2]
[340141818,1728676246386,-500.0,0.00027397,2]
[340141819,1728676246395,-500.0,0.00027397,2]
[340141820,1728676246404,-500.0,0.00027397,2]
[340141821,1728676246413,-500.0,0.00027397,2]
[340141822,1728676246423,-500.0,0.00027397,2]
[340141823,1728676246433,-500.0,0.00027397,2]
[340141824,1728676246444,-500.0,0.00027397,2]
[340141825,1728676246454,-500.0,0.00027397,2]
[340141826,1728676246462,-500.0,0.00027397,2]
[340141827,1728676246472,-500.0,0.00027397,2]
[340141828,1728676246481,-500.0,0.00027397,2]
[340141829,1728676246490,-500.0,0.00027397,2]
[340141831,1728676246500,-500.0,0.00027397,2]
[340141832,1728676246509,-500.0,0.00027397,2]
[340141834,1728676246518,-500.0,0.00027397,2]
[340141835,1728676246527,-500.0,0.00027397,2]
[340141836,1728676246536,-500.0,0.00027397,2]
[340141837,1728676246545,-500.0,0.00027397,2]
[340141838,1728676246555,-500.0,0.00027397,2]
[340141839,1728676246568,-500.0,0.00027397,2]
[340141840,1728676246578,-500.0,0.00027397,2]
[340141841,1728676246587,-325.8922788,0.00027397,2]
[340141842,1728676246596,-500.0,0.00027397,2]
[340141843,1728676246606,-518.61639015,0.00027397,2]
[340141844,1728676246616,-500.0,0.00027397,2]
[340141845,1728676246625,-500.0,0.00027397,2]
[340141846,1728676246634,-500.0,0.00027397,2]
[340141847,1728676246643,-500.0,0.00027397,2]
[340141848,1728676246652,-500.0,0.00027397,2]
[340141849,1728676246661,-500.0,0.00027397,2]
[340141850,1728676246671,-500.0,0.00027397,2]
[340141851,1728676246680,-500.0,0.00027397,2]
[340141852,1728676246689,-500.0,0.00027397,2]
[340141853,1728676246698,-500.0,0.00027397,2]
[340141854,1728676246707,-500.0,0.00027397,2]
[340141855,1728676246717,-500.0,0.00027397,2]
[340141856,1728676246726,-500.0,0.00027397,2]
[340141857,1728676246735,-500.0,0.00027397,2]
[340141858,1728676246748,-174.34607952,0.00027397,2]
[340141859,1728676246758,-500.0,0.00027397,2]
[340141860,1728676246768,-500.0,0.00027397,2]
[340141861,1728676246777,-500.0,0.00027397,2]
[340141862,1728676246786,-500.0,0.00027397,2]
[340141863,1728676246795,-500.0,0.00027397,2]
[340141864,1728676246804,-204.03476944,0.00027397,2]
[340141865,1728676246816,-500.0,0.00027397,2]
[340141866,1728676246825,-500.0,0.00027397,2]
[340141867,1728676246835,-78.35589723,0.00027397,2]
[340141868,1728676247014,-268.02886842,0.00027397,2]
[340141869,1728676247158,-153.61523435,0.00027397,2]
[340141870,1728676247168,-500.0,0.00027397,2]
[340141871,1728676247177,-526.58002151,0.00027397,2]
[340141872,1728676247186,-500.0,0.00027397,2]
[340141873,1728676247195,-500.0,0.00027397,2]
[340141874,1728676247205,-500.0,0.00027397,2]
[340141875,1728676247215,-500.0,0.00027397,2]
[340141876,1728676247227,-500.0,0.00027397,2]
[340141877,1728676247239,-500.0,0.00027397,2]
[340141878,1728676247251,-500.0,0.00027397,2]
[340141879,1728676247260,-500.0,0.00027397,2]
[340141880,1728676247269,-500.0,0.00027397,2]
[340141881,1728676247280,-185.69091004,0.00027397,2]
[340141882,1728676247289,-500.0,0.00027397,2]
[340141883,1728676247298,-500.0,0.00027397,2]
[340141884,1728676247307,-500.0,0.00027397,2]
[340141885,1728676247316,-500.0,0.00027397,2]
[340141886,1728676247327,-500.0,0.00027397,2]
[340141887,1728676247337,-500.0,0.00027397,2]
[340141888,1728676247347,-500.0,0.00027397,2]
[340141889,1728676247357,-500.0,0.00027397,2]
[340141890,1728676247369,-500.0,0.00027397,2]
[340141891,1728676247378,-500.0,0.00027397,2]
[340141892,1728676247387,-500.0,0.00027397,2]
[340141893,1728676247396,-500.0,0.00027397,2]
[340141894,1728676247405,-500.0,0.00027397,2]
[340141895,1728676247414,-51.94015409,0.00027397,2]
[340141896,1728676247427,-321.963,0.00027397,2]
[340141897,1728676247439,-126.09684591,0.00027397,2]
[340141898,1728676247450,-500.0,0.00027397,2]
[340141899,1728676247459,-290.47559551,0.00027397,2]
[340141900,1728676247470,-209.52440449,0.00027397,2]
[340141901,1728676247479,-168.02859551,0.00027397,2]
[340141902,1728676247495,-331.97140449,0.00027397,2]
[340141903,1728676247505,-500.0,0.00027397,2]
[340141904,1728676247516,-500.0,0.00027397,2]
[340141905,1728676247526,-150.0,0.00027397,2]
[340141906,1728676247536,-500.0,0.00027397,2]
[340141907,1728676247545,-500.0,0.00027397,2]
[340141908,1728676247555,-500.0,0.00027397,2]
[340141909,1728676247566,-408.36691164,0.00027397,2]
[340141910,1728676247578,-91.63308836,0.00027397,2]
[340141911,1728676247589,-500.0,0.00027397,2]
[340141912,1728676247600,-500.0,0.00027397,2]
[340141913,1728676247610,-500.0,0.00027397,2]
[340141914,1728676247619,-500.0,0.00027397,2]
[340141915,1728676247629,-500.0,0.00027397,2]
[340141916,1728676247639,-500.0,0.00027397,2]
[340141917,1728676247650,-500.0,0.00027397,2]
[340141918,1728676247660,-500.0,0.00027397,2]
[340141919,1728676247669,-364.41959788,0.00027397,2]
[340141920,1728676247678,-500.0,0.00027397,2]
[340141921,1728676247688,-500.0,0.00027397,2]
[340141922,1728676247697,-500.0,0.00027397,2]
[340141923,1728676247708,-500.0,0.00027397,2]
[340141924,1728676247717,-500.0,0.00027397,2]
[340141925,1728676247727,-500.0,0.00027397,2]
[340141926,1728676247739,-500.0,0.00027397,2]
[340141927,1728676247748,-500.0,0.00027397,2]
[340141928,1728676247757,-500.0,0.00027397,2]
[340141929,1728676247768,-500.0,0.00027397,2]
[340141930,1728676247777,-649.80410797,0.00027397,2]
[340141931,1728676247786,-500.0,0.00027397,2]
[340141932,1728676247795,-209.13754458,0.00027397,2]
[340141933,1728676247805,-500.0,0.00027397,2]
[340141934,1728676247817,-500.0,0.00027397,2]
[340141935,1728676247826,-500.0,0.00027397,2]
[340141936,1728676247835,-500.0,0.00027397,2]
[340141937,1728676247846,-500.0,0.00027397,2]
[340141938,1728676247856,-500.0,0.00027397,2]
[340141939,1728676247865,-500.0,0.00027397,2]
[340141940,1728676247874,-500.0,0.00027397,2]
[340141941,1728676247883,-500.0,0.00027397,2]
[340141942,1728676247892,-500.0,0.00027397,2]
[340141943,1728676247902,-515.55977509,0.00027397,2]
[340141944,1728676247911,-500.0,0.00027397,2]
[340141945,1728676247928,-500.0,0.00027397,2]
[340141946,1728676247938,-500.0,0.00027397,2]
[340141947,1728676247948,-500.0,0.00027397,2]
[340141948,1728676247957,-500.0,0.00027397,2]
[340141949,1728676247967,-500.0,0.00027397,2]
[340141950,1728676247976,-500.0,0.00027397,2]
[340141951,1728676247985,-500.0,0.00027397,2]
[340141952,1728676247995,-500.0,0.00027397,2]
[340141953,1728676248004,-500.0,0.00027397,2]
[340141954,1728676248014,-500.0,0.00027397,2]
[340141955,1728676248023,-500.0,0.00027397,2]
[340141956,1728676248033,-500.0,0.00027397,2]
[340141957,1728676248042,-500.0,0.00027397,2]
[340141958,1728676248052,-500.0,0.00027397,2]
[340141959,1728676248062,-500.0,0.00027397,2]
[340141960,1728676248071,-500.0,0.00027397,2]
[340141961,1728676248080,-500.0,0.00027397,2]
[340141962,1728676248090,-500.0,0.00027397,2]
[340141963,1728676248099,-500.0,0.00027397,2]
[340141964,1728676248108,-163.8932416,0.00027397,2]
[340141965,1728676248124,-336.1067584,0.00027397,2]
[340141966,1728676248134,-500.0,0.00027397,2]
[340141967,1728676248352,-500.0,0.00027397,2]
[340141968,1728676248362,-190.8561536,0.00027397,2]
[340141969,1728676248382,-309.1438464,0.00027397,2]
[340141970,1728676248392,-500.0,0.00027397,2]
[340141971,1728676248402,-500.0,0.00027397,2]
[340141972,1728676248411,-500.0,0.00027397,2]
[340141973,1728676248421,-500.0,0.00027397,2]
[340141974,1728676248430,-500.0,0.00027397,2]
[340141975,1728676248439,-500.0,0.00027397,2]
[340141976,1728676248449,-500.0,0.00027397,2]
[340141977,1728676248459,-500.0,0.00027397,2]
[340141978,1728676248468,-500.0,0.00027397,2]
[340141979,1728676248477,-500.0,0.00027397,2]
[340141980,1728676248487,-500.0,0.00027397,2]
[340141981,1728676248497,-500.0,0.00027397,2]
[340141982,1728676248509,-500.0,0.00027397,2]
[340141983,1728676248518,-500.0,0.00027397,2]
[340141984,1728676248528,-500.0,0.00027397,2]
[340141985,1728676248537,-500.0,0.00027397,2]
[340141986,1728676248547,-500.0,0.00027397,2]
[340141987,1728676248558,-500.0,0.00027397,2]
[340141988,1728676248568,-500.0,0.00027397,2]
[340141989,1728676248577,-500.0,0.00027397,2]
[340141990,1728676248587,-500.0,0.00027397,2]
[340141991,1728676248596,-500.0,0.00027397,2]
[340141992,1728676248605,-505.86945961,0.00027397,2]
[340141993,1728676248615,-500.0,0.00027397,2]
[340141994,1728676248624,-500.0,0.00027397,2]
[340141995,1728676248633,-500.0,0.00027397,2]
[340141996,1728676248643,-500.0,0.00027397,2]
[340141997,1728676248653,-270.40146107,0.00027397,2]
[340141998,1728676248662,-500.0,0.00027397,2]
[340141999,1728676248672,-500.0,0.00027397,2]
[340142000,1728676248682,-500.0,0.00027397,2]
[340142001,1728676248692,-500.0,0.00027397,2]
[340142002,1728676248702,-500.0,0.00027397,2]